[Event "*** Titled Tuesday Blitz"]
[Site "Chess.com"]
[Date "2020.04.07"]
[Round "4"]
[White "Saloni1299"]
[Black "adiosabu"]
[Result "1-0"]
[WhiteElo "2187"]
[BlackElo "2489"]
[TimeControl "180+1"]
[EndTime "13:41:24 PDT"]
[Termination "Saloni1299 won by resignation"]

1. e4 {[%clk 0:03:00.9]} 1... c5 {[%clk 0:02:59.4]} 2. Nf3 {[%clk 0:03:01]} 2...
Nc6 {[%clk 0:03:00]} 3. d4 {[%clk 0:03:01.2]} 3... cxd4 {[%clk 0:03:00.5]} 4.
Nxd4 {[%clk 0:03:01.8]} 4... e5 {[%clk 0:02:59.9]} 5. Nb5 {[%clk 0:03:01.8]}
5... a6 {[%clk 0:02:59.8]} 6. Nd6+ {[%clk 0:03:00.8]} 6... Bxd6 {[%clk
0:03:00.4]} 7. Qxd6 {[%clk 0:03:01.3]} 7... Qe7 {[%clk 0:03:01.1]} 8. Qd1 {[%clk
0:02:44]} 8... Nf6 {[%clk 0:02:59.6]} 9. Nc3 {[%clk 0:02:44.6]} 9... d6 {[%clk
0:02:59.3]} 10. Bg5 {[%clk 0:02:44]} 10... Be6 {[%clk 0:02:59.8]} 11. Qd2 {[%clk
0:02:35.7]} 11... O-O {[%clk 0:02:55.9]} 12. Be2 {[%clk 0:02:28.1]} 12... h6
{[%clk 0:02:52.9]} 13. Bxf6 {[%clk 0:02:26.9]} 13... Qxf6 {[%clk 0:02:50.6]} 14.
Qxd6 {[%clk 0:02:22.9]} 14... Rfd8 {[%clk 0:02:49.7]} 15. Qa3 {[%clk 0:02:13.5]}
15... b5 {[%clk 0:02:38.5]} 16. Bd3 {[%clk 0:01:49.4]} 16... Qg5 {[%clk
0:01:35.3]} 17. Ne2 {[%clk 0:01:29.3]} 17... Qxg2 {[%clk 0:01:28.3]} 18. O-O-O
{[%clk 0:01:09.1]} 18... Qxf2 {[%clk 0:01:26.2]} 19. Rdf1 {[%clk 0:01:03.7]}
19... Qe3+ {[%clk 0:01:22.9]} 20. Kb1 {[%clk 0:01:01.1]} 20... a5 {[%clk
0:00:40.4]} 21. Rhg1 {[%clk 0:00:54.7]} 21... Nb4 {[%clk 0:00:23.8]} 22. Rg3
{[%clk 0:00:49.3]} 22... Rxd3 {[%clk 0:00:18.4]} 23. Rxe3 {[%clk 0:00:41.4]}
23... Rxa3 {[%clk 0:00:18.3]} 24. Rxa3 {[%clk 0:00:38.9]} 24... Bc4 {[%clk
0:00:16.8]} 25. Re3 {[%clk 0:00:35.3]} 25... Rd8 {[%clk 0:00:16]} 26. b3 {[%clk
0:00:29.9]} 26... Bxe2 {[%clk 0:00:13.7]} 27. Rxe2 {[%clk 0:00:30.4]} 27... f6
{[%clk 0:00:13.6]} 28. a3 {[%clk 0:00:29.1]} 28... Nc6 {[%clk 0:00:13]} 29. c3
{[%clk 0:00:28.6]} 29... Rd6 {[%clk 0:00:11.6]} 30. Kc2 {[%clk 0:00:28.4]} 30...
Kf8 {[%clk 0:00:11.9]} 31. Rd1 {[%clk 0:00:27.4]} 31... Ke7 {[%clk 0:00:11.9]}
32. Rxd6 {[%clk 0:00:26.3]} 32... Kxd6 {[%clk 0:00:12.8]} 33. b4 {[%clk
0:00:20.4]} 33... axb4 {[%clk 0:00:12.2]} 34. axb4 {[%clk 0:00:21]} 34... g6
{[%clk 0:00:12.1]} 35. Kd3 {[%clk 0:00:20.5]} 35... f5 {[%clk 0:00:11.7]} 36.
Rg2 {[%clk 0:00:20.6]} 36... Ne7 {[%clk 0:00:11]} 37. h4 {[%clk 0:00:19.9]}
37... Ke6 {[%clk 0:00:09.9]} 38. h5 {[%clk 0:00:18.1]} 38... gxh5 {[%clk
0:00:09.6]} 39. Rh2 {[%clk 0:00:17.3]} 39... Ng6 {[%clk 0:00:08.5]} 40. exf5+
{[%clk 0:00:16.5]} 40... Kxf5 {[%clk 0:00:07.9]} 41. Rxh5+ {[%clk 0:00:17.1]}
41... Kf4 {[%clk 0:00:08.3]} 42. Rxh6 {[%clk 0:00:17.4]} 42... e4+ {[%clk
0:00:08.7]} 43. Ke2 {[%clk 0:00:16.9]} 43... Ne5 {[%clk 0:00:08.5]} 44. Rf6+
{[%clk 0:00:17.1]} 44... Kg5 {[%clk 0:00:07.7]} 45. Rb6 {[%clk 0:00:17.2]} 1-0

[Event "*** Titled Tuesday Blitz"]
[Site "Chess.com"]
[Date "2020.04.07"]
[Round "4"]
[White "piscatorox"]
[Black "Yanidze"]
[Result "0-1"]
[WhiteElo "2243"]
[BlackElo "2445"]
[TimeControl "180+1"]
[EndTime "13:41:24 PDT"]
[Termination "Yanidze won on time"]

1. e4 {[%clk 0:03:00.9]} 1... d6 {[%clk 0:02:57.7]} 2. d4 {[%clk 0:02:57.6]}
2... Nf6 {[%clk 0:02:57.7]} 3. Nc3 {[%clk 0:02:54.4]} 3... g6 {[%clk 0:02:57.6]}
4. Bg5 {[%clk 0:02:52]} 4... Bg7 {[%clk 0:02:57.1]} 5. Qd2 {[%clk 0:02:51.2]}
5... h6 {[%clk 0:02:56.1]} 6. Bf4 {[%clk 0:02:47.3]} 6... c6 {[%clk 0:02:50.6]}
7. O-O-O {[%clk 0:02:41.3]} 7... Qa5 {[%clk 0:02:47.1]} 8. Kb1 {[%clk
0:02:39.2]} 8... Nbd7 {[%clk 0:02:47.2]} 9. h4 {[%clk 0:02:29.1]} 9... Nb6
{[%clk 0:02:03.9]} 10. Be2 {[%clk 0:02:16.2]} 10... Be6 {[%clk 0:01:55.9]} 11.
Nd5 {[%clk 0:01:58.1]} 11... Qxd2 {[%clk 0:01:53.1]} 12. Nxf6+ {[%clk
0:01:57.9]} 12... Bxf6 {[%clk 0:01:48.5]} 13. Rxd2 {[%clk 0:01:58.5]} 13...
O-O-O {[%clk 0:01:38.1]} 14. b3 {[%clk 0:01:56.2]} 14... c5 {[%clk 0:01:30.8]}
15. e5 {[%clk 0:01:46.8]} 15... dxe5 {[%clk 0:01:26.7]} 16. dxe5 {[%clk
0:01:30]} 16... Rxd2 {[%clk 0:01:19.9]} 17. exf6 {[%clk 0:01:22.1]} 17... Rd4
{[%clk 0:00:44.8]} 18. Be3 {[%clk 0:01:15.8]} 18... Rd7 {[%clk 0:00:30.9]} 19.
fxe7 {[%clk 0:01:13.8]} 19... Nd5 {[%clk 0:00:25.4]} 20. Bxc5 {[%clk 0:01:11]}
20... b6 {[%clk 0:00:14.6]} 21. Ba6+ {[%clk 0:01:03.1]} 21... Kb8 {[%clk
0:00:13.6]} 22. Ba3 {[%clk 0:00:58.8]} 22... Nc3+ {[%clk 0:00:11.2]} 23. Kb2
{[%clk 0:00:58.8]} 23... Nd1+ {[%clk 0:00:11.6]} 24. Kc1 {[%clk 0:00:46.8]}
24... Nxf2 {[%clk 0:00:12]} 25. Rh2 {[%clk 0:00:36.7]} 25... Rd1+ {[%clk
0:00:11.3]} 26. Kb2 {[%clk 0:00:36.5]} 26... Rxg1 {[%clk 0:00:12]} 27. Kc3
{[%clk 0:00:17]} 27... Bc8 {[%clk 0:00:09.7]} 28. Bb5 {[%clk 0:00:16.3]} 28...
Ne4+ {[%clk 0:00:07.7]} 29. Kd4 {[%clk 0:00:15.7]} 29... Nf6 {[%clk 0:00:05.5]}
30. c4 {[%clk 0:00:14.7]} 30... Bb7 {[%clk 0:00:05.6]} 31. g4 {[%clk 0:00:11.9]}
31... Rd1+ {[%clk 0:00:06.5]} 32. Kc3 {[%clk 0:00:11.3]} 32... Ne4+ {[%clk
0:00:06.9]} 33. Kb2 {[%clk 0:00:10.1]} 33... Rd2+ {[%clk 0:00:06.8]} 34. Rxd2
{[%clk 0:00:10]} 34... Nxd2 {[%clk 0:00:07.7]} 35. e8=Q+ {[%clk 0:00:06.5]}
35... Rxe8 {[%clk 0:00:08.4]} 36. Bxe8 {[%clk 0:00:07]} 36... f6 {[%clk
0:00:09]} 37. Bxg6 {[%clk 0:00:07]} 37... Nf3 {[%clk 0:00:09.5]} 38. h5 {[%clk
0:00:05.3]} 38... Ne5 {[%clk 0:00:09.9]} 39. Bf5 {[%clk 0:00:05.3]} 39... Bf3
{[%clk 0:00:10.2]} 40. Bf8 {[%clk 0:00:05.2]} 40... Nxg4 {[%clk 0:00:10.2]} 41.
Bxg4 {[%clk 0:00:04.9]} 41... Bxg4 {[%clk 0:00:11.1]} 42. Bxh6 {[%clk
0:00:04.9]} 42... Bxh5 {[%clk 0:00:11.9]} 43. Kc3 {[%clk 0:00:04.4]} 43... Kc7
{[%clk 0:00:12.5]} 44. a3 {[%clk 0:00:04.3]} 44... Kd6 {[%clk 0:00:13.1]} 45.
Bf4+ {[%clk 0:00:04.1]} 45... Ke6 {[%clk 0:00:12.8]} 46. b4 {[%clk 0:00:04.7]}
46... Be8 {[%clk 0:00:12.6]} 47. Kb3 {[%clk 0:00:01.8]} 47... a6 {[%clk
0:00:12.6]} 48. a4 {[%clk 0:00:02.1]} 48... Kf5 {[%clk 0:00:12.4]} 49. b5 {[%clk
0:00:02.3]} 49... axb5 {[%clk 0:00:11.8]} 50. Be3 {[%clk 0:00:01.3]} 50... bxa4+
{[%clk 0:00:12]} 0-1

[Event "*** Titled Tuesday Blitz"]
[Site "Chess.com"]
[Date "2020.04.07"]
[Round "4"]
[White "Vusatiuk_Vladimir"]
[Black "ersekitamara"]
[Result "1-0"]
[WhiteElo "2380"]
[BlackElo "1903"]
[TimeControl "180+1"]
[EndTime "13:41:24 PDT"]
[Termination "Vusatiuk_Vladimir won by resignation"]

1. e4 {[%clk 0:03:00.9]} 1... c5 {[%clk 0:02:59.2]} 2. Nf3 {[%clk 0:03:00.9]}
2... d6 {[%clk 0:02:59.8]} 3. d4 {[%clk 0:03:00.5]} 3... cxd4 {[%clk 0:03:00.7]}
4. Qxd4 {[%clk 0:03:01]} 4... Nc6 {[%clk 0:03:00.1]} 5. Qe3 {[%clk 0:03:00.2]}
5... Nf6 {[%clk 0:02:57.6]} 6. Be2 {[%clk 0:03:00]} 6... g6 {[%clk 0:02:57.5]}
7. c4 {[%clk 0:02:58.1]} 7... Bg7 {[%clk 0:02:57.6]} 8. Nc3 {[%clk 0:02:57.6]}
8... O-O {[%clk 0:02:57.7]} 9. O-O {[%clk 0:02:58.1]} 9... a6 {[%clk 0:02:57.1]}
10. Rb1 {[%clk 0:02:57]} 10... Be6 {[%clk 0:02:51.2]} 11. b3 {[%clk 0:02:54.8]}
11... Rc8 {[%clk 0:02:49.3]} 12. Bb2 {[%clk 0:02:54.4]} 12... Ng4 {[%clk
0:02:35.5]} 13. Qd2 {[%clk 0:02:39.4]} 13... Nge5 {[%clk 0:02:30.2]} 14. Rfe1
{[%clk 0:02:21.9]} 14... Nxf3+ {[%clk 0:02:22.5]} 15. Bxf3 {[%clk 0:02:22.8]}
15... Nd4 {[%clk 0:02:23]} 16. Bd1 {[%clk 0:02:18.5]} 16... Bd7 {[%clk
0:02:09.3]} 17. h4 {[%clk 0:02:02.4]} 17... b5 {[%clk 0:02:04.8]} 18. Nd5 {[%clk
0:01:51.5]} 18... Ne6 {[%clk 0:01:53.2]} 19. Be2 {[%clk 0:01:44.5]} 19... bxc4
{[%clk 0:01:48.9]} 20. Bxc4 {[%clk 0:01:45.4]} 20... Bb5 {[%clk 0:01:36]} 21.
Bxb5 {[%clk 0:01:34.1]} 21... axb5 {[%clk 0:01:36.9]} 22. Bxg7 {[%clk
0:01:33.5]} 22... Nxg7 {[%clk 0:01:35.7]} 23. a4 {[%clk 0:01:33.6]} 23... bxa4
{[%clk 0:01:27.7]} 24. bxa4 {[%clk 0:01:31.4]} 24... Ra8 {[%clk 0:01:27.5]} 25.
Ra1 {[%clk 0:01:29.9]} 25... e6 {[%clk 0:01:27.1]} 26. Ne3 {[%clk 0:01:25.7]}
26... Qxh4 {[%clk 0:01:25.6]} 27. Qxd6 {[%clk 0:01:24.9]} 27... Qxe4 {[%clk
0:01:12.1]} 28. a5 {[%clk 0:01:24.8]} 28... Rfd8 {[%clk 0:00:51]} 29. Qc7 {[%clk
0:01:16.3]} 29... Nf5 {[%clk 0:00:45.9]} 30. Nxf5 {[%clk 0:01:12.1]} 30... Qxf5
{[%clk 0:00:46.8]} 31. a6 {[%clk 0:01:10]} 31... Rd2 {[%clk 0:00:45.1]} 32. Qb6
{[%clk 0:01:09.8]} 32... Rdd8 {[%clk 0:00:32.1]} 33. a7 {[%clk 0:01:08.5]} 33...
Qd5 {[%clk 0:00:32.2]} 34. Ra5 {[%clk 0:01:03.3]} 34... Qd4 {[%clk 0:00:21.2]}
35. Qa6 {[%clk 0:00:52.9]} 35... Kg7 {[%clk 0:00:20.9]} 36. Rb5 {[%clk
0:00:52.3]} 36... Qd6 {[%clk 0:00:18.1]} 37. Qa1+ {[%clk 0:00:51]} 37... Kg8
{[%clk 0:00:14.8]} 38. Rb7 {[%clk 0:00:48.4]} 38... Qd4 {[%clk 0:00:05.1]} 39.
Qa6 {[%clk 0:00:36.1]} 39... Kg7 {[%clk 0:00:03.5]} 40. Qxe6 {[%clk 0:00:33.4]}
40... Qf6 {[%clk 0:00:01.2]} 41. Qe4 {[%clk 0:00:29.2]} 41... Re8 {[%clk
0:00:01.4]} 42. Qxe8 {[%clk 0:00:24.6]} 42... Rxe8 {[%clk 0:00:02.3]} 43. Rxe8
{[%clk 0:00:25]} 43... Qa1+ {[%clk 0:00:02.9]} 44. Kh2 {[%clk 0:00:23.7]} 44...
Qd4 {[%clk 0:00:03]} 45. Re3 {[%clk 0:00:07.3]} 45... Qh4+ {[%clk 0:00:01.2]}
46. Kg1 {[%clk 0:00:07.1]} 46... Qc4 {[%clk 0:00:01.5]} 47. a8=Q {[%clk
0:00:06.3]} 1-0

[Event "*** Titled Tuesday Blitz"]
[Site "Chess.com"]
[Date "2020.04.07"]
[Round "4"]
[White "Msb2"]
[Black "BaMBoMaTTo"]
[Result "1-0"]
[WhiteElo "2936"]
[BlackElo "2745"]
[TimeControl "180+1"]
[EndTime "13:41:25 PDT"]
[Termination "Msb2 won by resignation"]

1. d4 {[%clk 0:03:00.9]} 1... Nf6 {[%clk 0:02:59.3]} 2. c4 {[%clk 0:02:58]} 2...
e6 {[%clk 0:02:59.8]} 3. Nc3 {[%clk 0:02:56.4]} 3... Bb4 {[%clk 0:02:59.9]} 4.
e3 {[%clk 0:02:57]} 4... O-O {[%clk 0:02:59.2]} 5. Bd2 {[%clk 0:02:57.7]} 5...
b6 {[%clk 0:02:49.9]} 6. Nf3 {[%clk 0:02:56.9]} 6... Bb7 {[%clk 0:02:49.8]} 7.
Bd3 {[%clk 0:02:57]} 7... d6 {[%clk 0:02:42]} 8. O-O {[%clk 0:02:55.6]} 8...
Nbd7 {[%clk 0:02:41.9]} 9. b3 {[%clk 0:02:52.2]} 9... e5 {[%clk 0:02:36.8]} 10.
Bc2 {[%clk 0:02:42]} 10... Re8 {[%clk 0:02:22.2]} 11. a3 {[%clk 0:02:40]} 11...
exd4 {[%clk 0:02:17.5]} 12. Nxd4 {[%clk 0:02:33.7]} 12... Bxc3 {[%clk
0:02:02.8]} 13. Bxc3 {[%clk 0:02:34.6]} 13... Ne4 {[%clk 0:02:03.2]} 14. Bb2
{[%clk 0:02:26.8]} 14... Qg5 {[%clk 0:02:02.8]} 15. Nf3 {[%clk 0:01:52.9]} 15...
Qh5 {[%clk 0:01:53.7]} 16. h3 {[%clk 0:01:38.9]} 16... Ng5 {[%clk 0:01:38.1]}
17. Nxg5 {[%clk 0:01:31.3]} 17... Qxg5 {[%clk 0:01:39]} 18. Qg4 {[%clk
0:01:31.8]} 18... Qxg4 {[%clk 0:01:37.2]} 19. hxg4 {[%clk 0:01:32.7]} 19... a5
{[%clk 0:01:29.4]} 20. a4 {[%clk 0:01:19]} 20... Be4 {[%clk 0:01:21.1]} 21. Bd1
{[%clk 0:01:17.6]} 21... Nc5 {[%clk 0:01:15]} 22. f3 {[%clk 0:01:16.6]} 22...
Bb7 {[%clk 0:00:47.3]} 23. e4 {[%clk 0:01:14.6]} 23... c6 {[%clk 0:00:47.5]} 24.
Bc2 {[%clk 0:00:52.1]} 24... d5 {[%clk 0:00:46.6]} 25. cxd5 {[%clk 0:00:51.3]}
25... cxd5 {[%clk 0:00:47]} 26. e5 {[%clk 0:00:52.2]} 26... Rac8 {[%clk
0:00:38.3]} 27. Rac1 {[%clk 0:00:51.6]} 27... Ne6 {[%clk 0:00:25.6]} 28. Bd3
{[%clk 0:00:42.6]} 28... Nf4 {[%clk 0:00:17.9]} 29. Bb5 {[%clk 0:00:41.6]} 29...
Red8 {[%clk 0:00:17.6]} 30. Bd4 {[%clk 0:00:39.3]} 30... Bc6 {[%clk 0:00:13.6]}
31. Ba6 {[%clk 0:00:25.3]} 31... Ra8 {[%clk 0:00:14.1]} 32. Rxc6 {[%clk
0:00:17.9]} 32... Rxa6 {[%clk 0:00:14.6]} 33. Kf2 {[%clk 0:00:18.5]} 33... Ne6
{[%clk 0:00:11.7]} 34. Rd1 {[%clk 0:00:18.6]} 34... Nxd4 {[%clk 0:00:11.5]} 35.
Rxd4 {[%clk 0:00:19.5]} 35... Kf8 {[%clk 0:00:12.4]} 36. f4 {[%clk 0:00:18.4]}
36... Ke7 {[%clk 0:00:12.9]} 37. f5 {[%clk 0:00:18.4]} 37... Rd7 {[%clk
0:00:12.1]} 38. Kf3 {[%clk 0:00:18.6]} 38... Raa7 {[%clk 0:00:11.3]} 39. Rxb6
{[%clk 0:00:18]} 39... Rac7 {[%clk 0:00:12]} 40. Rb5 {[%clk 0:00:18.3]} 40...
Rc3+ {[%clk 0:00:12.4]} 41. Kf4 {[%clk 0:00:18.9]} 41... Rc2 {[%clk 0:00:13]}
42. Rdxd5 {[%clk 0:00:18.5]} 42... Rxd5 {[%clk 0:00:12.9]} 43. Rxd5 {[%clk
0:00:19.4]} 43... Rxg2 {[%clk 0:00:13.4]} 44. Rxa5 {[%clk 0:00:19.6]} 44... Rf2+
{[%clk 0:00:14.1]} 45. Ke4 {[%clk 0:00:19.7]} 45... Re2+ {[%clk 0:00:14.8]} 46.
Kf3 {[%clk 0:00:19.8]} 46... Rb2 {[%clk 0:00:15.1]} 47. Rb5 {[%clk 0:00:20.5]}
47... g6 {[%clk 0:00:15.5]} 48. a5 {[%clk 0:00:20.4]} 48... h5 {[%clk
0:00:15.1]} 49. Rb7+ {[%clk 0:00:20.3]} 49... Ke8 {[%clk 0:00:15.2]} 50. gxh5
{[%clk 0:00:20.5]} 50... gxf5 {[%clk 0:00:14.6]} 51. a6 {[%clk 0:00:20.6]} 1-0

[Event "*** Titled Tuesday Blitz"]
[Site "Chess.com"]
[Date "2020.04.07"]
[Round "4"]
[White "Chigorinetz"]
[Black "LikeWater"]
[Result "0-1"]
[WhiteElo "2507"]
[BlackElo "2694"]
[TimeControl "180+1"]
[EndTime "13:41:26 PDT"]
[Termination "LikeWater won on time"]

1. e4 {[%clk 0:03:00.9]} 1... c5 {[%clk 0:02:57.6]} 2. Nc3 {[%clk 0:03:00.1]}
2... e6 {[%clk 0:02:57.5]} 3. Nge2 {[%clk 0:02:59.8]} 3... Nc6 {[%clk
0:02:57.4]} 4. g3 {[%clk 0:02:59.1]} 4... d5 {[%clk 0:02:57.7]} 5. exd5 {[%clk
0:02:57.9]} 5... exd5 {[%clk 0:02:58.6]} 6. Bg2 {[%clk 0:02:58]} 6... d4 {[%clk
0:02:52.1]} 7. Nd5 {[%clk 0:02:57]} 7... Nf6 {[%clk 0:02:51.8]} 8. Nef4 {[%clk
0:02:54.7]} 8... Nxd5 {[%clk 0:02:50.9]} 9. Nxd5 {[%clk 0:02:54.3]} 9... Bd6
{[%clk 0:02:50.4]} 10. O-O {[%clk 0:02:52.5]} 10... O-O {[%clk 0:02:50.6]} 11.
d3 {[%clk 0:02:52.3]} 11... Bf5 {[%clk 0:02:37.6]} 12. Re1 {[%clk 0:02:41.3]}
12... Qd7 {[%clk 0:02:32]} 13. Bf4 {[%clk 0:02:35.1]} 13... Rfe8 {[%clk
0:02:15.5]} 14. Qd2 {[%clk 0:02:25.5]} 14... Rad8 {[%clk 0:01:41.8]} 15. a3
{[%clk 0:02:23.2]} 15... Be6 {[%clk 0:01:21.1]} 16. Bxd6 {[%clk 0:02:20.3]}
16... Qxd6 {[%clk 0:01:22]} 17. Nf4 {[%clk 0:02:13.6]} 17... Bd7 {[%clk
0:01:18.2]} 18. b4 {[%clk 0:01:57.3]} 18... cxb4 {[%clk 0:01:13.1]} 19. axb4
{[%clk 0:01:47.6]} 19... Rxe1+ {[%clk 0:01:01.8]} 20. Rxe1 {[%clk 0:01:45.3]}
20... Qxb4 {[%clk 0:01:00.8]} 21. Qe2 {[%clk 0:01:30.9]} 21... h6 {[%clk
0:00:49.9]} 22. Bd5 {[%clk 0:01:13.8]} 22... Qd6 {[%clk 0:00:39]} 23. Qh5 {[%clk
0:01:05.8]} 23... Qf6 {[%clk 0:00:33.4]} 24. Bb3 {[%clk 0:00:55.5]} 24... Re8
{[%clk 0:00:24.3]} 25. Rb1 {[%clk 0:00:47.4]} 25... Re5 {[%clk 0:00:19.2]} 26.
Qd1 {[%clk 0:00:34.9]} 26... Qd6 {[%clk 0:00:17.2]} 27. h4 {[%clk 0:00:26.3]}
27... g6 {[%clk 0:00:15.4]} 28. Qf3 {[%clk 0:00:24.4]} 28... Rf5 {[%clk
0:00:09.2]} 29. Qe4 {[%clk 0:00:21.3]} 29... Kg7 {[%clk 0:00:09.7]} 30. h5
{[%clk 0:00:19.4]} 30... Qe5 {[%clk 0:00:07.8]} 31. hxg6 {[%clk 0:00:15.9]}
31... fxg6 {[%clk 0:00:08.7]} 32. Qf3 {[%clk 0:00:14]} 32... Qe7 {[%clk
0:00:04.9]} 33. Bc4 {[%clk 0:00:05.9]} 33... Kh8 {[%clk 0:00:04.4]} 34. Rxb7
{[%clk 0:00:03.7]} 34... g5 {[%clk 0:00:04.9]} 35. Qh5 {[%clk 0:00:02.8]} 35...
Qg7 {[%clk 0:00:01.9]} 36. Qxh6+ {[%clk 0:00:02.8]} 36... Qxh6 {[%clk
0:00:02.1]} 37. Rxd7 {[%clk 0:00:03.1]} 37... gxf4 {[%clk 0:00:02.6]} 38. Rc7
{[%clk 0:00:02.2]} 38... f3 {[%clk 0:00:03.1]} 39. Rc8+ {[%clk 0:00:02]} 39...
Kg7 {[%clk 0:00:03.7]} 40. Rc7+ {[%clk 0:00:02.3]} 40... Kf8 {[%clk 0:00:03.9]}
41. Rc8+ {[%clk 0:00:02.1]} 41... Ke7 {[%clk 0:00:04.3]} 42. Rxc6 {[%clk
0:00:01.7]} 42... Qxc6 {[%clk 0:00:03.7]} 0-1

[Event "*** Titled Tuesday Blitz"]
[Site "Chess.com"]
[Date "2020.04.07"]
[Round "4"]
[White "AquivaRubinstein"]
[Black "MisiekZielony"]
[Result "1-0"]
[WhiteElo "2400"]
[BlackElo "2137"]
[TimeControl "180+1"]
[EndTime "13:41:26 PDT"]
[Termination "AquivaRubinstein won on time"]

1. e4 {[%clk 0:03:00.9]} 1... Nf6 {[%clk 0:02:59.5]} 2. e5 {[%clk 0:03:00.1]}
2... Nd5 {[%clk 0:02:59.6]} 3. d4 {[%clk 0:03:00.2]} 3... d6 {[%clk 0:02:59.8]}
4. c4 {[%clk 0:03:00.4]} 4... Nb6 {[%clk 0:02:59.8]} 5. f4 {[%clk 0:03:00.6]}
5... g6 {[%clk 0:02:59.6]} 6. Nc3 {[%clk 0:02:59]} 6... Bg7 {[%clk 0:02:59.5]}
7. Be3 {[%clk 0:02:58.7]} 7... dxe5 {[%clk 0:02:59.5]} 8. fxe5 {[%clk
0:02:58.2]} 8... c5 {[%clk 0:02:59.2]} 9. dxc5 {[%clk 0:02:48.6]} 9... Qxd1+
{[%clk 0:02:34.5]} 10. Rxd1 {[%clk 0:02:47.3]} 10... N6d7 {[%clk 0:02:34.2]} 11.
e6 {[%clk 0:02:47.5]} 11... fxe6 {[%clk 0:02:33.9]} 12. Nf3 {[%clk 0:02:43.1]}
12... Na6 {[%clk 0:02:33.5]} 13. Be2 {[%clk 0:02:25.2]} 13... O-O {[%clk
0:02:23.6]} 14. O-O {[%clk 0:02:22.5]} 14... Ndxc5 {[%clk 0:02:20.3]} 15. Bd4
{[%clk 0:02:07.3]} 15... Bxd4+ {[%clk 0:02:07.4]} 16. Rxd4 {[%clk 0:02:07.4]}
16... e5 {[%clk 0:01:38.5]} 17. Nxe5 {[%clk 0:01:44.2]} 17... Rxf1+ {[%clk
0:01:36.6]} 18. Kxf1 {[%clk 0:01:44.2]} 18... Be6 {[%clk 0:01:35.5]} 19. Bf3
{[%clk 0:01:37.6]} 19... Rf8 {[%clk 0:01:32.6]} 20. a3 {[%clk 0:01:32.7]} 20...
Rf5 {[%clk 0:01:23.9]} 21. Ng4 {[%clk 0:01:26]} 21... h5 {[%clk 0:01:05.8]} 22.
Nh6+ {[%clk 0:01:23.6]} 22... Kg7 {[%clk 0:01:01.9]} 23. Nxf5+ {[%clk
0:01:23.7]} 23... Bxf5 {[%clk 0:01:01.9]} 24. b4 {[%clk 0:01:22.3]} 24... Ne6
{[%clk 0:00:56.4]} 25. Rd7 {[%clk 0:01:17.9]} 25... Nac7 {[%clk 0:00:56.1]} 26.
Nd5 {[%clk 0:01:04.5]} 26... Nxd5 {[%clk 0:00:46.2]} 27. cxd5 {[%clk 0:00:51.4]}
27... Nd4 {[%clk 0:00:45.5]} 28. Rxe7+ {[%clk 0:00:50]} 28... Kf6 {[%clk
0:00:45.4]} 29. d6 {[%clk 0:00:49.7]} 29... b5 {[%clk 0:00:39.9]} 30. Rxa7
{[%clk 0:00:47.6]} 30... Ke6 {[%clk 0:00:34.5]} 31. Ra6 {[%clk 0:00:39.3]} 31...
Kd7 {[%clk 0:00:26.4]} 32. Kf2 {[%clk 0:00:35.9]} 32... Be6 {[%clk 0:00:20.6]}
33. Ke3 {[%clk 0:00:29.6]} 33... Nf5+ {[%clk 0:00:20.3]} 34. Kf4 {[%clk
0:00:29.6]} 34... Nxd6 {[%clk 0:00:20.2]} 35. Ra7+ {[%clk 0:00:17]} 35... Kd8
{[%clk 0:00:18.2]} 36. Ke5 {[%clk 0:00:15]} 36... Nc8 {[%clk 0:00:18.1]} 37. Ra8
{[%clk 0:00:12.8]} 37... Bd7 {[%clk 0:00:17.5]} 38. Bb7 {[%clk 0:00:12.5]} 38...
Kc7 {[%clk 0:00:17.5]} 39. Bxc8 {[%clk 0:00:12.6]} 39... Bxc8 {[%clk 0:00:17.6]}
40. Rxc8+ {[%clk 0:00:10.6]} 40... Kxc8 {[%clk 0:00:17.6]} 41. Kf6 {[%clk
0:00:11.2]} 41... Kd7 {[%clk 0:00:17.9]} 42. Kxg6 {[%clk 0:00:11.4]} 42... Kd6
{[%clk 0:00:18.1]} 43. Kxh5 {[%clk 0:00:11.6]} 43... Kd5 {[%clk 0:00:18.6]} 44.
g4 {[%clk 0:00:12.1]} 44... Kc4 {[%clk 0:00:19]} 45. g5 {[%clk 0:00:12.7]} 45...
Kb3 {[%clk 0:00:19.5]} 46. g6 {[%clk 0:00:13.4]} 46... Kxa3 {[%clk 0:00:19.9]}
47. g7 {[%clk 0:00:14.1]} 1-0

[Event "*** Titled Tuesday Blitz"]
[Site "Chess.com"]
[Date "2020.04.07"]
[Round "4"]
[White "Pudor"]
[Black "Blagorod"]
[Result "1-0"]
[WhiteElo "2361"]
[BlackElo "2116"]
[TimeControl "180+1"]
[EndTime "13:41:26 PDT"]
[Termination "Pudor won on time"]

1. d4 {[%clk 0:03:00.9]} 1... d5 {[%clk 0:02:59.3]} 2. c4 {[%clk 0:03:00.4]}
2... Nc6 {[%clk 0:02:59.1]} 3. cxd5 {[%clk 0:02:59.3]} 3... Qxd5 {[%clk
0:02:58.4]} 4. e3 {[%clk 0:02:59.9]} 4... e5 {[%clk 0:02:55.9]} 5. Nc3 {[%clk
0:03:00]} 5... Bb4 {[%clk 0:02:55.2]} 6. a3 {[%clk 0:03:00.1]} 6... Bxc3+ {[%clk
0:02:53.6]} 7. bxc3 {[%clk 0:03:01]} 7... Qd6 {[%clk 0:02:46.9]} 8. d5 {[%clk
0:02:57.5]} 8... Nce7 {[%clk 0:02:36.5]} 9. c4 {[%clk 0:02:57.1]} 9... c6 {[%clk
0:02:20.4]} 10. e4 {[%clk 0:02:45.8]} 10... Nf6 {[%clk 0:02:14.6]} 11. Bd3
{[%clk 0:02:44.4]} 11... O-O {[%clk 0:02:03.7]} 12. Ne2 {[%clk 0:02:40.3]} 12...
b5 {[%clk 0:01:45.2]} 13. Nc3 {[%clk 0:02:12.7]} 13... bxc4 {[%clk 0:01:36.3]}
14. Bxc4 {[%clk 0:02:13.6]} 14... Qc5 {[%clk 0:01:25.6]} 15. Qd3 {[%clk
0:02:00.5]} 15... cxd5 {[%clk 0:01:20.9]} 16. exd5 {[%clk 0:01:55.7]} 16... Bf5
{[%clk 0:01:09.4]} 17. Qe2 {[%clk 0:01:45.3]} 17... Rac8 {[%clk 0:01:01.9]} 18.
d6 {[%clk 0:01:35.9]} 18... Ng6 {[%clk 0:00:54.4]} 19. O-O {[%clk 0:01:05.1]}
19... Qxc4 {[%clk 0:00:54.4]} 20. Qxc4 {[%clk 0:01:06]} 20... Rxc4 {[%clk
0:00:53.8]} 21. Nb5 {[%clk 0:01:06.9]} 21... a6 {[%clk 0:00:44.2]} 22. Nc7
{[%clk 0:01:05.3]} 22... Rc6 {[%clk 0:00:41]} 23. a4 {[%clk 0:01:03.6]} 23...
Ne4 {[%clk 0:00:27.8]} 24. Ba3 {[%clk 0:00:56.8]} 24... Rd8 {[%clk 0:00:24.7]}
25. Nd5 {[%clk 0:00:50.2]} 25... Nxd6 {[%clk 0:00:20.6]} 26. h4 {[%clk
0:00:50.1]} 26... h5 {[%clk 0:00:18.5]} 27. Rfd1 {[%clk 0:00:46.7]} 27... Kh7
{[%clk 0:00:15.7]} 28. Ne3 {[%clk 0:00:44.3]} 28... Be6 {[%clk 0:00:14.5]} 29.
Rab1 {[%clk 0:00:36]} 29... Rd7 {[%clk 0:00:13.8]} 30. Rb8 {[%clk 0:00:29.7]}
30... Nc4 {[%clk 0:00:12.8]} 31. Rxd7 {[%clk 0:00:25.8]} 31... Bxd7 {[%clk
0:00:12]} 32. Bc1 {[%clk 0:00:25.3]} 32... Nxe3 {[%clk 0:00:11.4]} 33. Bxe3
{[%clk 0:00:26.2]} 33... Be6 {[%clk 0:00:10.9]} 34. a5 {[%clk 0:00:24.7]} 34...
Nxh4 {[%clk 0:00:10.8]} 35. Bb6 {[%clk 0:00:23.6]} 35... Ng6 {[%clk 0:00:09.9]}
36. Ra8 {[%clk 0:00:23.2]} 36... Bc4 {[%clk 0:00:09.9]} 37. Ra7 {[%clk
0:00:22.9]} 37... h4 {[%clk 0:00:08.2]} 38. Kh2 {[%clk 0:00:22]} 38... Nf4
{[%clk 0:00:07.7]} 39. g3 {[%clk 0:00:20.8]} 39... hxg3+ {[%clk 0:00:07.1]} 40.
fxg3 {[%clk 0:00:21.7]} 40... Ng6 {[%clk 0:00:06.6]} 41. Kh3 {[%clk 0:00:21.7]}
41... e4 {[%clk 0:00:06.6]} 42. Be3 {[%clk 0:00:20.6]} 42... Rd6 {[%clk
0:00:03.8]} 43. Rb7 {[%clk 0:00:19.9]} 43... Rd3 {[%clk 0:00:03.2]} 44. Bb6
{[%clk 0:00:19.2]} 44... e3 {[%clk 0:00:02.6]} 45. Rb8 {[%clk 0:00:19.5]} 45...
e2 {[%clk 0:00:01.9]} 46. Re8 {[%clk 0:00:20]} 1-0